Cogmind - Beta 16 @@@ ROGUE MODE // 2025.11.27 @ 17:38:41 Player: Red Box Result: Destroyed by 7R-S2C(R) with Subdweller Machine Gun Performance ------------- Evolutions (0) 0 Regions Visited (3) 600 Robots Destroyed (27) 135 Value Destroyed (697) 697 Prototype IDs (12) 240 Alien Tech Used (0) 0 Bonus (25) 25 TOTAL SCORE: 1697 Bonus ------- Follower Combat Kills 25 Cogmind --------- Core Integrity 0/250 Matter 278/300 Energy 128/140 System Corruption 1% Temperature Cool (15) Movement Treading (320) Ox2 Location -10/Subcaves Parts ------- > --- POWER (1) -------- Light Deuterium Engine > --- PROPULSION (2) --- Light Treads Compact Wheel > --- UTILITY (2) ------ Light Humpback > --- WEAPON (2) ------- Subdweller Beam Cannon Subdweller Machine Gun > --- INVENTORY (25) --- Improved Ion Engine Subdweller Power Source Subdweller Power Source Subdweller Power Source Makeshift Power Source Subdweller Monowheel Flightbrick Improved Heat Sink Large Storage Unit High-capacity Battery (250) Large Matter Pod (150) Machine Analyzer Subdweller Optics Improved Terrain Scanner Improved Light Armor Plating EM Pulse Gun Subdweller Laser Beamcaster Datajack Hammer Peak State ------------ > --- POWER ------------ Light Deuterium Engine > --- PROPULSION ------- Light Treads Compact Wheel > --- UTILITY ---------- Light Humpback > --- WEAPON ----------- Beam Cannon Subdweller Beam Cannon > --- INVENTORY -------- Improved Ion Engine Subdweller Power Source Subdweller Power Source Subdweller Power Source Makeshift Power Source Light Treads Subdweller Monowheel Flightbrick Improved Heat Sink Large Storage Unit High-capacity Battery Large Matter Pod Machine Analyzer Subdweller Optics Improved Terrain Scanner Improved Light Armor Plating EM Pulse Gun Subdweller Laser Beamcaster Subdweller Machine Gun Datajack Hammer [Rating: 18] Favorites ----------- Power Ion Engine Engine Ion Engine Propulsion Aluminum Leg Treads Light Treads Leg Aluminum Leg Wheel Compact Wheel Utility Large Storage Unit Device Improved Heat Sink Storage Large Storage Unit Hackware Hacking Suite Protection Improved Light Armor Plating Weapon Beam Cannon Energy Gun EM Pulse Gun Energy Cannon Beam Cannon Ballistic Gun Light Assault Rifle Launcher Grenade Launcher Special Weapon Mining Laser Impact Weapon Hammer Special Melee Weapon Datajack Build | -11 -10 -10 -10 ------- Run | Yrd Mat Min Sub Slots Evolved . | . . . . Power . | . . . . Propulsion . | . . . . Utility . | . . . . Weapon . | . . . . Parts Attached 32 | 8 10 5 9 Power 3 | 1 . 1 1 Engine 3 | 1 . 1 1 Core . | . . . . Reactor . | . . . . Propulsion 6 | 2 . 3 1 Treads 2 | . . 1 1 Leg 2 | 2 . . . Wheel 2 | . . 2 . Hover . | . . . . Flight . | . . . . Utility 9 | 3 3 1 2 Device 3 | 2 . 1 . Storage 4 | 1 2 . 1 Processor . | . . . . Hackware 1 | . 1 . . Protection 1 | . . . 1 Artifact . | . . . . Weapon 14 | 2 7 . 5 Energy Gun 3 | . 2 . 1 Energy Cannon 4 | . 3 . 1 Ballistic Gun 3 | 2 . . 1 Ballistic Cannon . | . . . . Launcher 1 | . . . 1 Special Weapon 1 | . 1 . . Impact Weapon 1 | . . . 1 Slashing Weapon . | . . . . Piercing Weapon . | . . . . Special Melee Weapon 1 | . 1 . . Unidentified Prototypes . | . . . . Parts Lost 7 | . . 3 4 Power . | . . . . Propulsion 3 | . . 2 1 Utility . | . . . . Weapon 4 | . . 1 3 Highest Loss Streak 3 | . . 3 2 To Critical Strikes . | . . . . Average Backups 13 | 5 11 14 16 Power 2 | . 1 2 3 Propulsion 3 | 3 4 3 2 Utility 3 | . 1 3 5 Weapon 3 | 1 3 4 3 Tool/Special . | . . . . Unused Backups 13 | . 2 . 11 Power 5 | . . . 5 Propulsion 2 | . 1 . 1 Utility 4 | . . . 4 Weapon 2 | . 1 . 1 Tool/Special . | . . . . Average Slot Usage (%) 98 | . 100 99 94 Engine 14 | . 14 14 14 Treads 5 | . . 5 14 Leg 16 | . 28 16 . Wheel 5 | . . 5 14 Device 9 | . 7 12 7 Storage 14 | . 14 14 14 Hackware 2 | . 6 1 . Energy Gun 8 | . 10 9 4 Energy Cannon 12 | . 3 17 19 Ballistic Gun 4 | . 11 . . Peak Build Rating 18 | 10 11 12 18 Average Rating 11 | 7 9 10 14 On Entrance 8 | . 9 11 12 Avg Prop Armor Cover (%) 11 | . . 11 11 Naked Turns . | . . . . Heaviest Build 56 | 13 32 32 56 Greatest Support 20 | 20 20 20 16 Greatest Overweight (x) 3 | . 1 1 3 Average Overweight (x) 1 | . . 1 1 Largest Inventory Capacity 25 | 8 15 15 25 Average Capacity 14 | 7 12 15 18 Most Carried 25 | 8 15 15 25 Average Carried 13 | 5 11 14 17 Final Capacity 25 | 8 15 15 25 Final Carried 23 | 7 14 15 23 Class Distribution -------------------- 100% | Mutant Dominant Class ---------------- Mutant | -10/Materials Mutant | -10/Mines Mutant | -10/Subcaves Resources | -11 -10 -10 -10 ----------- Run | Yrd Mat Min Sub Matter Collected 828 | 310 258 104 156 Remotely . | . . . . Salvage Created 821 | 172 238 141 270 Parts 59 | 19 17 7 16 Haulers Intercepted . | . . . . Recyclers Shooed . | . . . . Parts Field Recycled . | . . . . Retrieved Matter . | . . . . Parts Self-Destructed 7 | . . . 7 Prevented . | . . . . Parts Restored . | . . . . Kills | -11 -10 -10 -10 ------- Run | Yrd Mat Min Sub Combat Hostiles Destroyed 17 | . 4 4 9 Guns 7 | . 1 2 4 Cannons 8 | . 3 1 4 AOE 1 | . . . 1 Classes Destroyed 10 | 3 4 1 2 Worker 1 | 1 . . . Tunneler 4 | 3 . 1 . Recycler 1 | 1 . . . Operator 1 | . 1 . . Watcher 3 | . 3 . . Swarmer 3 | . . . 3 Grunt 6 | . 3 3 . Sentry 1 | . . . 1 Demolisher 1 | . . 1 . Subdweller 6 | . 1 . 5 Best Kill Streak 3 | 2 2 2 3 Combat Bots Only 3 | . 2 2 3 Max Kills in Single Turn 1 | 1 1 1 1 Gunslinging . | . . . . Exploded 1 | . . . 1 Melee . | . . . . Uniques/NPCs Destroyed . | . . . . Combat | -11 -10 -10 -10 -------- Run | Yrd Mat Min Sub Hostile Shots Fired 66 | . 5 16 45 Missed 16 | . 1 1 14 Hits 50 | . 4 15 31 Projectile 50 | . 4 15 31 AOE 13 | . . 13 . Critical Strikes 1 | . . . 1 Damage Taken 1179 | . 57 511 611 Core 265 | . 30 138 97 Absorbed by Shields . | . . . . Core Remaining (%) 100 | 100 . . . Volleys Fired 68 | 15 14 12 27 Largest 2 | 2 2 2 2 Hottest 140 | 40 120 120 140 Shots Fired 127 | 30 27 21 49 Gun 77 | 30 14 17 16 Cannon 46 | . 12 4 30 Launcher 3 | . . . 3 Special 1 | . 1 . . Kinetic 38 | 30 8 . . Thermal 62 | . 13 4 45 Explosive 3 | . . . 3 Electromagnetic 24 | . 6 17 1 Robot Hit Streak 17 | 3 6 17 8 Robot Miss Streak 6 | 5 1 2 6 Penetration Max . | . . . . Secondary Targets . | . . . . Shots Hit Robots 77 | 13 16 18 30 Core Hits 36 | 7 10 6 13 Critical Kills 1 | 1 . . . Critical Parts Destroyed . | . . . . Critical Strikes 1 | 1 . . . Destroy 1 | 1 . . . Melee Attacks 12 | . 1 . 11 Impact 11 | . . . 11 Slashing . | . . . . Piercing . | . . . . Sneak Attacks 2 | . 1 . 1 Combat Hostiles . | . . . . Follow-up Attacks . | . . . . Damage Inflicted 1378 | 115 230 262 771 Guns 592 | 115 107 193 177 Cannons 594 | . 123 69 402 Explosions 192 | . . . 192 Melee . | . . . . Ramming . | . . . . Kinetic 158 | 115 43 . . Thermal 761 | . 123 69 569 Explosive 192 | . . . 192 Electromagnetic 267 | . 64 193 10 Impact . | . . . . Slashing . | . . . . Piercing . | . . . . Highest Corruption 1 | . 1 1 1 Average Corruption 1 | . 1 1 1 Corruption Purged . | . . . . Corruption Blocked . | . . . . Effects 18 | . 1 7 10 Message Errors 1 | . . . 1 Matter Fused 6 | . . 3 3 Heat Flow Errors 3 | . . . 3 Energy Discharges 5 | . 1 3 1 Data Loss (minor) 1 | . . . 1 Misfires 1 | . . . 1 Weapon Failures 1 | . . 1 . Overload Shots . | . . . . Overflow Damage 18 | . . 13 5 Projectiles 18 | . . 13 5 Explosions . | . . . . Melee . | . . . . Knockbacks . | . . . . Impact . | . . . . Kinetic . | . . . . Secondary . | . . . . Self-Inflicted Damage 18 | . . . 18 Shots 1 | . . . 1 Rammed . | . . . . Targets Rammed . | . . . . Kicked . | . . . . Crushed . | . . . . Highest Temperature 225 | . 126 18 225 Average Temperature 50 | . 47 9 57 Received Heat Transfer 156 | . 21 6 129 Siege Activations . | . . . . Martial Activations . | . . . . Shielding Activations . | . . . . Robots Disrupted . | . . . . Combat Hostiles . | . . . . Robots Corrupted 1 | . . 1 . Combat Hostiles 1 | . . 1 . Parts Fried . | . . . . Impact Corruptions . | . . . . Robots Melted . | . . . . Combat Hostiles . | . . . . Parts Melted 2 | . . 1 1 Heat Transferred 1443 | . 259 148 1036 Parts Sabotaged . | . . . . Parts Stolen . | . . . . Parts Stripped . | . . . . Power Chain Reactions . | . . . . Alert | -11 -10 -10 -10 ------- Run | Yrd Mat Min Sub Maximum Alert Level . | . . . . Low Security (%) 100 | 100 100 100 . Level 1 . | . . . . Level 2 . | . . . . Level 3 . | . . . . Level 4 . | . . . . Level 5 . | . . . . High Security . | . . . . Max Security . | . . . . Peak Influence 97 | 10 50 97 . Initial . | . . . . Average 9 | 1 4 16 . Influence Increases 446 | 25 175 150 96 Destroy 0b10 Robot/C 240 | . 60 100 80 Destroy 0b10 Robot/NC 55 | 25 20 10 . Destroy Leader 46 | . 26 20 . Allied During Kill 6 | . . 5 1 Successful Hack 8 | . 8 . . Select Force Hacks 60 | . 60 . . Destroy Structure 1 | . 1 . . Lose Combat Pursuer 30 | . . 15 15 Influence Decreases 446 | 25 175 120 126 Entered New Map 16 | . . . 16 Time Decay 410 | 25 175 120 90 Lost Ally 20 | . . . 20 Squads Dispatched 6 | . 5 1 . Investigation 4 | . 4 . . Extermination . | . . . . Reinforcement 1 | . 1 . . Assault 1 | . . 1 . Garrison . | . . . . Intercept . | . . . . Searches Triggered . | . . . . Construction Impeded . | . . . . Haulers Reinforced . | . . . . Active Scanning Responses . | . . . . Cargo Convoy Interrupts . | . . . . Stealth | -11 -10 -10 -10 --------- Run | Yrd Mat Min Sub Distress Signals 2 | . 1 1 . Communications Jammed . | . . . . Distress Signals . | . . . . Times Spotted 27 | . 9 6 12 Peak Tracking Total 4 | . 2 3 4 Tactical Retreats 2 | . . 1 1 Traps | -11 -10 -10 -10 ------- Run | Yrd Mat Min Sub Traps Triggered . | . . . . Indirectly . | . . . . Trap Hack Attempts 37 | . 37 . . Triggered . | . . . . Disarmed . | . . . . Reprogrammed 4 | . 4 . . Reused . | . . . . Traps Extracted . | . . . . Installed . | . . . . Triggered . | . . . . Machines | -11 -10 -10 -10 ---------- Run | Yrd Mat Min Sub Machines Disabled 1 | . . . 1 Max in Single Turn 1 | . . . 1 Machines Repaired . | . . . . Machines Dismantled . | . . . . Machines Sabotaged . | . . . . Overloaded Fab Kills . | . . . . Hacking | -11 -10 -10 -10 --------- Run | Yrd Mat Min Sub Machines Accessed 8 | . 7 . 1 Terminals 5 | . 5 . . Fabricators . | . . . . Repair Stations . | . . . . Recycling Units 2 | . 2 . . Scanalyzers . | . . . . Garrison Access . | . . . . Total Hacks 21 | . 20 . 1 Successful 11 | . 10 . 1 Failed 9 | . 9 . . Catastrophic 1 | . 1 . . Database Lockouts 1 | . 1 . . Manual 16 | . 16 . . Terminals 15 | . 15 . . Fabricators . | . . . . Repair Stations . | . . . . Recycling Units 5 | . 5 . . Scanalyzers . | . . . . Garrison Access . | . . . . Terminal Hacks 3 | . 2 . 1 Robot Analysis 1 | . 1 . . Locate Traps 1 | . 1 . . Proto ID Catalog 1 | . . . 1 Fabricator Hacks . | . . . . Repair Station Hacks . | . . . . Recycling Unit Hacks 1 | . 1 . . Retrieve Components 1 | . 1 . . Scanalyzer . | . . . . Garrison Access Hacks . | . . . . Unauthorized Hacks 7 | . 7 . . Terminals 5 | . 5 . . Botnet 1 | . 1 . . Operators 1 | . 1 . . Skim 3 | . 3 . . Fabricators . | . . . . Repair Stations . | . . . . Recycling Units 2 | . 2 . . Tunnel 2 | . 2 . . Scanalyzers . | . . . . Garrison Access . | . . . . Data Cores Recovered . | . . . . Used . | . . . . Hacking Detections 6 | . 6 . . Full Trace Events 3 | . 3 . . Feedback Events 1 | . 1 . . Corruption 1 | . 1 . . Feedback Blocked . | . . . . Robot Schematics Acquired . | . . . . Robots Built . | . . . . Authchips . | . . . . Time . | . . . . Total Robot Build Rating . | . . . . Part Schematics Acquired . | . . . . Parts Built . | . . . . Authchips . | . . . . Time . | . . . . Total Part Build Rating . | . . . . Part Studies Acquired . | . . . . Parts Repaired . | . . . . Time . | . . . . Parts Recycled . | . . . . Recycled Matter . | . . . . Retrieved Matter . | . . . . Retrieved Components . | . . . . Parts Scanalyzed . | . . . . Part Schematics Acquired . | . . . . Parts Damaged . | . . . . Bothacking | -11 -10 -10 -10 ------------ Run | Yrd Mat Min Sub Used RIF Installer . | . . . . Robots Hacked . | . . . . Non-combat . | . . . . Combat . | . . . . Robot Hacks Applied . | . . . . Relay Couplers Released . | . . . . Fabnet Peak Effective % . | . . . . Robots Rewired . | . . . . Allies Hacked . | . . . . Hacks Repelled . | . . . . Allies | -11 -10 -10 -10 -------- Run | Yrd Mat Min Sub Total Allies 3 | . . 3 . Largest Group 2 | . . 2 1 Highest-Rated Group 46 | . . 46 31 Highest-Rated Ally 31 | . . 31 31 Total Orders . | . . . . Ally Attacks 26 | . . 13 13 Total Damage 376 | . . 207 169 Kills 2 | . . 2 . Allies Corrupted . | . . . . Allies Melted . | . . . . Intel | -11 -10 -10 -10 ------- Run | Yrd Mat Min Sub Active Infowar (turns) 1148 | 70 1078 . . Terrain 1148 | 70 1078 . . Robot Analysis Total 1 | . 1 . . Derelict Logs Recovered 4 | . . 2 2 Drone Launches . | . . . . Drone Recoveries . | . . . . Exploration | -11 -10 -10 -10 ------------- Run | Yrd Mat Min Sub Turns Passed 4751 | 155 1918 1369 1309 Spaces Moved 2393 | 84 642 826 841 Core 5 | 5 . . . Treads . | . . . . Legs 1118 | 79 642 397 . Wheels 1270 | . . 429 841 Hover . | . . . . Flight . | . . . . Fastest Speed 50 | 50 120 115 115 Average Speed 148 | 115 175 151 128 Slowest Speed 190 | 120 190 190 145 Overloaded Moves . | . . . . Propulsion Burnouts . | . . . . Robots Hopped . | . . . . Potential Cave-ins . | . . . . Cave-ins Triggered . | . . . . Exploration Rate (%) 62 | 5 98 94 51 Regions Visited 3 Branch Regions 2 Pre-discovered Areas 3 | . 2 1 . Known Exits Taken . | . . . . Unknown Exits Taken 3 | 1 1 1 . Scrap Searched . | . . . . Spaces Dug 1 | . 1 . . Terrain Destroyed 6 | . 1 . 5 Melee . | . . . . Projectile 1 | . 1 . . AOE 5 | . . . 5 Terrain Rammed . | . . . . Walls Destroyed . | . . . . Machines Disabled . | . . . . Actions | -11 -10 -10 -10 --------- Run | Yrd Mat Min Sub Total 3440 | 114 1403 925 998 Wait 827 | . 677 72 78 Move 2390 | 83 641 825 841 Hop . | . . . . Pick Up 48 | 7 13 6 22 Fast Attach 10 | 7 2 . 1 Attach 9 | . . 5 4 Detach 2 | . . 2 . Swap 22 | 1 10 2 9 Drop 15 | 1 8 1 5 Fire 68 | 15 14 12 27 Melee 12 | . 1 . 11 Ram . | . . . . Kick . | . . . . Crush . | . . . . Escape Stasis . | . . . . Rewire . | . . . . Trap 37 | . 37 . . Miscellaneous . | . . . . Route ------- -11/Scrapyard -10/Materials (discovered 4 exits: *Mat x3 / [*Min]) -10/Mines (discovered 4 exits: *Mat x2 / [*Exi] / *Sub) -10/Subcaves (discovered 2 exits: Rec / [*Scr]) History --------- Turn | Location | Event 6 | -11/Scrapyard | Discovered new exit (range 16) 156 | -11/Scrapyard | Entered Materials 309 | -10/Materials | Build established: Mutant 856 | -10/Materials | Derelicts attacked the area 1193 | -10/Materials | Discovered new exit (range 8) 1262 | -10/Materials | Discovered new exit (range 7) 1570 | -10/Materials | Discovered new exit (range 6) 1817 | -10/Materials | Discovered new exit (range 16) 2062 | -10/Materials | Central database locked down 2074 | -10/Materials | Entered Mines 2075 | -10/Mines | Learned location of Storage (-7) 2363 | -10/Mines | Assembled infested the area 2368 | -10/Mines | Assisted by a Guerilla fighting off Assembled 2524 | -10/Mines | Discovered new exit (range 6) 2652 | -10/Mines | Identified exit to Materials 2885 | -10/Mines | Core integrity fell below 50% 2919 | -10/Mines | Lost 3 parts (2n1w) 3042 | -10/Mines | Met a Derelict testing a Signal Generator 3372 | -10/Mines | Deemed a non-threat by the Exiles lab entrance 3372 | -10/Mines | Discovered new exit (range 5) 3429 | -10/Mines | Discovered new exit (range 8) 3443 | -10/Mines | Entered Subcaves 3443 | -10/Subcaves | Accompanied by 1 ally 3444 | -10/Subcaves | Approached by a straggling Scientist 3444 | -10/Subcaves | Identified exit to Recycling 3578 | -10/Subcaves | Learned Materials garrison access intel 3764 | -10/Subcaves | Scientist uncovered a shortcut to Scraptown 4157 | -10/Subcaves | Core integrity fell below 20% 4214 | -10/Subcaves | Visited 4L-MR0's lab 4342 | -10/Subcaves | Found Flightbrick 4526 | -10/Subcaves | Shifting Twisted Machinery released Sub. Power Source 4529 | -10/Subcaves | Shifting Twisted Machinery released Sub. Power Source 4723 | -10/Subcaves | A Subdweller sparked back to life 4752 | -10/Subcaves | Destroyed by 7R-S2C(R) with Subdweller Machine Gun Last Messages --------------- 04303_ Acquired 10 matter. 04342_ Acquired Flightbrick. 04420_ 88-6QB(R) destroyed. 04426_ Acquired Sub. Laser. 04431_ Acquired Sub. Optics. Sub. Power Source falls loose from the Twisted Machinery. 04538_ Acquired Sub. Power Source. 04538_ RZ-HQ7(u) deconstructs Twisted Machinery. 04540_ Dropped Ion Engine. 04547_ Acquired Sub. Power Source. 04550_ System corrupted: Matter fused (-5). 04557_ Subatomizers dissect the Ion Engine, destroying it. 04566_ Acquired 3 matter. 04723_ 75-1RT(R) creaks and sparks as it begins to move. 04750_ Lgt. Treads destroyed. 04751_ Beam Cannon destroyed. Map ----- +----------------------------------------------------+ | #?????????????????### ########??????# | | #????????????????????# ##?????????????## | | ????????????????????????# #??????????????## ## | | ???????????????????????# ??????????????## ## | | ???????????????????????# ??????????????# # | | ?####??????????????????## ?????###??????# # | | ?# ##??????????????????###????## ###???## ## | | ## #?????????????????????????# # #### ####? | | ## #????????####???????????### ## ## #???? | | #??????### ##?###??????# ##???? | | #?????## ### ###????## ##????? | | ##?#### #?????# # # ##?????? | | #?# #?????# #######??????? | | ##?# ## ##????# #????????????? | | ##??## ### #????## ##????????????? | | #????####### ####??## #????####?????? | | ## #?????###### ##??## #???# ##????? | | ?## ####### & # ##??# ##?# % #????? | | ### ## "## ##?# ## #????? | | # #### " "# ### #?????? | | ## #####" & " #?????? | | ?# #?# ##?????? | | ?## #??# ### ##??????? | | ?# ##?# #?## ## ###??###??? | | ?## #?## ####RR ## ##???# #??? | | ### ##### ### @ R ####??? ???? | | # #####?# ### ## #####? #????? | | ## ###?????# ###?### # ## #?#??? | | ## #???????####???# # ## | | ## #??????????????## | | ##????? ?????????# ### > | | ####??????? ######## ### ## | | ## ##?????????? #?# ##??# | | ## #????>??????? #?## #????? | | ?# #?????????? ####% #????????? | | ## ##??????????????### *%% %#####?????? | | # ##??????????????## #=# ### #? | | ### # ##???????????????# ## % #? | | ?# ### #????????######### ## % % #? | | ?## #?###???????## ## # # ### # ##? | | ?# #??????###### % ##?###?##?? | | ?## #??##### #????????? | | ??# #### # # # # %=## % #????????? | | ??# ############ #????????? | | ??# #### #?????????# ##????????? | | ??## ## # ### ##??## ##?????????## ##?????????? | | ???#########?###????####???????????####??????????? | | ?????????????????????????????????????????????????? | | ?????????????????????????????????????????????????? | | ?????????????????????????????????????????????????? | +----------------------------------------------------+ Best States ------------- Heat Dissipation 39 Energy Generation 14 Energy Capacity 250 Matter Stores 300 Matter Capacity 300 Sight Range 16 Terrain Scan Range 16 Terrain Scan Density 10 Armor Coverage 150 Evasion (%) 55 Offensive Hacking 10 Item Schematics ----------------- None Robot Schematics ------------------ None Fabricated ------------ Nothing Repaired ---------- Nothing Studied --------- None Alien Tech Used ----------------- None Achievements -------------- None Challenges ------------ None Game ------ Seed LaunchAerolevThermoblaster Manual? 0 Play Time 00:24:46 Cumulative 736.1 hours Start 2025.11.27 @ 17:14:17 End 2025.11.27 @ 17:38:41 Sessions 1 Manual Loads 0 Difficulty Rogue Special Mode None Game No. 517 Rogue 517 Adventurer 0 Explorer 0 Win Type - Total 1 Types 1/0/0/0/0/0/0/0/0/0 Lore% 71 Gallery% 68 Achievement% 47 Wizard Run 0 Options --------- Layout 1 ASCII 0 Keyboard 0 Movement Mouse Keybinds 0 Fullscreen 1 Font 20/SmallcapsGlow Map View 54x42 Zoom Use 0% Tactical HUD 1 Map Filters NONE Filters NONE Steam 1 RUN: 9bd98d5e-18d4-4c1f-98c6-229250469f47